Cogmind - Beta 14 @@@ ROGUE MODE // 2024.09.03 @ 01:11:48 Player: Beef Result: Destroyed by G-67 Veteran with Field Laser Performance ------------- Evolutions (6) 3000 Regions Visited (16) 3200 Robots Destroyed (174) 870 Value Destroyed (6498) 6498 Prototype IDs (29) 580 Alien Tech Used (2) 400 Bonus (1140) 1140 TOTAL SCORE: 15688 Bonus ------- High Alert Combat Kills 555 Met Data Miner 300 Met Zhirov 300 Friendly Fire -15 Cogmind --------- Core Integrity 0/1150 Matter 213/300 Energy 7/100 System Corruption 9% Temperature Cool (37) Movement Hovering (80) Location -4/Factory Parts ------- > --- POWER (2) -------- (None) > --- PROPULSION (4) --- Combat Gravmag System Improved Gyrokinetic Inverter > --- UTILITY (10) ----- Improved Terrain Scan Processor Advanced Terrain Scan Processor 0b10 Decoder Chip [Generic] Improved Target Analyzer > --- WEAPON (3) ------- (None) > --- INVENTORY (5) ---- High-capacity Matter Pod (111) Dispersion Rifle Peak State ------------ > --- POWER ------------ Heavy Antimatter Reactor Light Quantum Reactor > --- PROPULSION ------- Flexi-carbon Leg Flexi-carbon Leg Myomer Leg Myomer Leg > --- UTILITY ---------- Advanced Heat Sink Large Storage Unit Improved Signal Interpreter Advanced Terrain Scan Processor 0b10 Decoder Chip [Generic] Advanced Actuator Array Improved Transmission Jammer Improved Phase Shifter Advanced Hacking Suite Advanced Hacking Suite > --- WEAPON ----------- Kinetic Spear Kinetic Spear Kinetic Spear > --- INVENTORY -------- Fission Core Carbon-fiber Leg Carbon-fiber Leg Flexi-carbon Leg Myomer Leg Myomer Leg Myomer Leg Advanced Hacking Suite Transdimensional Reconstructor Dispersion Rifle Heavy Rocket Launcher Heavy Missile Launcher [Rating: 119] Favorites ----------- Power Micro Nuclear Core Engine Improved Ion Engine Power Core Micro Nuclear Core Reactor Heavy Antimatter Reactor Propulsion Carbon-fiber Leg Treads Light Treads Leg Carbon-fiber Leg Wheel Compact Wheel Hover Unit Combat Gravmag System Flight Unit Nuclear Pulse Thruster Utility Hacking Suite Device Advanced Heat Sink Storage Large Storage Unit Processor Core Analyzer Hackware Hacking Suite Protection Improved Medium Armor Plating Weapon Kinetic Spear Energy Gun Field Laser Ballistic Gun Assault Rifle Ballistic Cannon Magnetic Acceleration Cannon Launcher Heavy Rocket Launcher Special Weapon Plasma Flamer Slashing Weapon Plasma Sword Piercing Weapon Kinetic Spear Build | -11 -10 -10 -9 -8 -7 -6 -6 -6 -6 -5 -5 -5 -5 -5 -4 -4 ------- Run | Yrd Mat Min Mat Mat Fac Fac Low Low Dat Pro Fac Upp Upp Zhi Pro Fac Slots Evolved 12 | . . . 2 2 2 2 . . . . 2 . . . . 2 Power 1 | . . . . . . . . . . . . . . . . 1 Propulsion 2 | . . . . . 1 1 . . . . . . . . . . Utility 8 | . . . 2 2 1 1 . . . . 1 . . . . 1 Weapon 1 | . . . . . . . . . . . 1 . . . . . Parts Attached 298 | 7 1 14 6 13 60 11 27 13 . 11 40 12 10 5 25 43 Power 36 | 1 . 3 1 1 9 2 6 . . . 4 1 . 1 3 4 Engine 17 | 1 . 3 1 1 3 1 3 . . . 4 . . . . . Core 13 | . . . . . 6 . 3 . . . . 1 . . . 3 Reactor 6 | . . . . . . 1 . . . . . . . 1 3 1 Propulsion 84 | 2 . 4 1 3 16 5 7 4 . 3 10 5 2 . 12 10 Treads 16 | 2 . 4 1 3 . . 1 1 . 1 2 1 . . . . Leg 54 | . . . . . 16 5 6 3 . 1 . 4 2 . 12 5 Wheel 10 | . . . . . . . . . . . 8 . . . . 2 Hover 2 | . . . . . . . . . . . . . . . . 2 Flight 2 | . . . . . . . . . . 1 . . . . . 1 Utility 108 | 2 1 5 2 5 20 3 8 4 . 4 20 2 4 4 8 16 Device 47 | 1 . 5 . 2 6 . 4 . . 2 7 2 3 1 5 9 Storage 7 | 1 1 . . . 1 . . 1 . . 1 . . 1 . 1 Processor 19 | . . . . 1 5 . 1 2 . . 6 . . . 1 3 Hackware 9 | . . . 2 . . 2 . . . 1 1 . . . . 3 Protection 26 | . . . . 2 8 1 3 1 . 1 5 . 1 2 2 . Artifact . | . . . . . . . . . . . . . . . . . Weapon 70 | 2 . 2 2 4 15 1 6 5 . 4 6 4 4 . 2 13 Energy Gun 25 | . . 2 2 4 9 . 2 . . . . . . . . 6 Energy Cannon . | . . . . . . . . . . . . . . . . . Ballistic Gun 3 | 2 . . . . . . . . . . . . . . . 1 Ballistic Cannon 1 | . . . . . . . 1 . . . . . . . . . Launcher 14 | . . . . . 3 . . 4 . . . 1 2 . 1 3 Special Weapon 1 | . . . . . . . . . . 1 . . . . . . Impact Weapon . | . . . . . . . . . . . . . . . . . Slashing Weapon 12 | . . . . . 3 1 2 . . 2 3 1 . . . . Piercing Weapon 14 | . . . . . . . 1 1 . 1 3 2 2 . 1 3 Special Melee Weapon . | . . . . . . . . . . . . . . . . . Unidentified Prototypes 11 | . . . . 1 1 . . . . . 2 . . 4 . 3 Corrupted Parts 1 | . . . . . . . . . . 1 . . . . . . System Corruption 2 | . . . . . . . . . . 2 . . . . . . Parts Lost 113 | . . 9 . 2 12 1 15 7 . 8 9 3 5 . 8 34 Power 16 | . . 2 . 1 2 . 3 . . 1 2 . . . . 5 Propulsion 33 | . . 1 . 1 4 1 2 4 . 3 3 1 2 . 2 9 Utility 49 | . . 4 . . 4 . 7 2 . 4 4 1 3 . 5 15 Weapon 15 | . . 2 . . 2 . 3 1 . . . 1 . . 1 5 Highest Loss Streak 18 | . . 7 . 1 6 1 6 4 . 6 4 3 3 . 5 18 To Critical Strikes 2 | . . . . . 1 . . . . 1 . . . . . . Average Slot Usage (%) 93 | . 100 88 98 99 96 99 94 86 93 87 92 93 99 99 97 74 Engine 3 | . 14 13 11 8 2 2 1 . . . 4 2 . . . . Core 2 | . . . . . 4 1 4 6 6 4 . 2 5 2 . 2 Treads 5 | . 28 27 22 18 . . 3 4 6 6 4 2 . . . . Leg 15 | . . . . . 22 25 22 21 20 17 3 11 22 23 22 16 Wheel 1 | . . . . . . . . . . . 10 5 . . . . Device 11 | . 14 10 11 9 11 9 8 6 6 4 10 13 19 14 19 15 Storage 6 | . 14 14 11 9 7 6 6 6 6 6 5 5 5 5 5 4 Processor 11 | . . . . 9 9 20 17 10 20 20 18 11 11 11 11 13 Hackware 9 | . . . 21 18 12 12 13 13 13 11 5 7 5 5 5 4 Protection 5 | . . . . 9 7 3 3 3 6 3 5 11 8 13 6 . Energy Gun 4 | . . 7 21 18 10 . 3 2 . . . . . . . 4 Ballistic Gun 1 | . 28 13 . . . . . . . . . . . . . . Slashing Weapon 3 | . . . . . 4 12 3 . . . 7 7 5 5 3 . Piercing Weapon 4 | . . . . . . . 1 3 6 8 8 5 10 11 12 6 Peak Build Rating 119 | 9 9 10 21 29 48 58 59 57 53 57 79 90 97 95 102 119 Average Rating 55 | 5 9 8 20 25 41 52 53 48 53 49 60 81 92 91 98 82 On Entrance 48 | . 9 9 10 21 27 46 58 51 53 53 43 76 90 88 95 102 Naked Turns . | . . . . . . . . . . . . . . . . . Heaviest Build 71 | 14 19 21 24 27 50 43 52 56 49 51 55 49 57 63 62 71 Greatest Support 90 | 40 40 40 40 40 50 60 65 65 45 45 52 60 80 75 90 90 Greatest Overweight (x) 7 | . . . . . 1 . 1 1 1 7 3 2 1 . 1 . Average Overweight (x) . | . . . . . . . . . 1 . . . . . . . Largest Inventory Capacity 15 | 8 10 10 10 10 15 15 15 15 15 15 15 15 15 15 15 15 Average Capacity 13 | 7 8 10 10 10 14 15 15 15 15 15 15 15 15 15 15 12 Most Carried 15 | 6 7 8 10 10 15 15 15 15 15 15 15 15 15 15 15 15 Average Carried 12 | 3 5 7 9 9 13 14 13 11 15 14 12 12 13 13 14 10 Final Capacity 15 | 8 10 10 10 10 15 15 15 15 15 15 15 15 15 15 15 5 Final Carried 15 | 6 7 7 10 10 15 15 11 15 15 8 15 12 11 15 15 2 Class Distribution -------------------- 44% | Scavenger-Mutant 24% | Scavenger-Gladiator 17% | Hacker-Mutant 10% | Mutant Dominant Class ---------------- Mutant | -10/Materials Mutant | -10/Mines Hacker-Mutant | -9/Materials Scavenger-Mutant | -8/Materials Scavenger-Mutant | -7/Factory Scavenger-Gladiator | -6/Factory Scavenger-Mutant | -6/Lower Caves Hacker-Mutant | -6/Lower Caves Hacker-Mutant | -6/Data Miner Hacker-Mutant | -5/Proximity Caves Scavenger-Mutant | -5/Factory Scavenger-Mutant | -5/Upper Caves Scavenger-Gladiator | -5/Upper Caves Scavenger-Gladiator | -5/Zhirov Scavenger-Gladiator | -4/Proximity Caves Scavenger-Mutant | -4/Factory Resources | -11 -10 -10 -9 -8 -7 -6 -6 -6 -6 -5 -5 -5 -5 -5 -4 -4 ----------- Run | Yrd Mat Min Mat Mat Fac Fac Low Low Dat Pro Fac Upp Upp Zhi Pro Fac Matter Collected 3987 | 196 115 220 123 95 696 115 215 384 . 142 428 193 131 218 275 441 Remotely . | . . . . . . . . . . . . . . . . . Salvage Created 7842 | 12 161 365 398 565 1767 416 508 446 . 79 1150 259 415 310 570 421 Parts 383 | 3 9 23 26 35 83 15 23 9 . 4 66 14 11 6 31 25 Haulers Intercepted 2 | . . . . 1 . . . . . . . . . . . 1 Recyclers Shooed 6 | . . 2 . . . . . . . . 4 . . . . . Parts Field Recycled . | . . . . . . . . . . . . . . . . . Retrieved Matter . | . . . . . . . . . . . . . . . . . Parts Self-Destructed 70 | . . . . . . . 22 3 . 2 . 9 10 3 21 . Prevented 4 | . . . . . . . . 4 . . . . . . . . Kills | -11 -10 -10 -9 -8 -7 -6 -6 -6 -6 -5 -5 -5 -5 -5 -4 -4 ------- Run | Yrd Mat Min Mat Mat Fac Fac Low Low Dat Pro Fac Upp Upp Zhi Pro Fac Combat Hostiles Destroyed 143 | . 2 6 10 10 33 4 12 10 . 1 12 7 16 . 10 10 Melee 54 | . . . . . 8 4 8 . . 1 12 2 6 . 10 3 Guns 49 | . 2 6 10 10 17 . 3 . . . . . . . . 1 AOE 40 | . . . . . 8 . 1 10 . . . 5 10 . . 6 Classes Destroyed 22 | 1 4 4 1 4 3 . 1 2 . . 1 . . . 1 . Worker 9 | . . 4 . . 3 . . . . . 2 . . . . . Builder 11 | . . 1 1 1 3 . . . . . 3 . . . . 2 Tunneler 7 | 1 . 1 . 1 . 1 . . . . 2 . . . . 1 Hauler 2 | . . . . 1 . . . . . . . . . . . 1 Recycler 8 | . 1 3 . . 1 1 . . . . 2 . . . . . Mechanic 1 | . . . . . 1 . . . . . . . . . . . Operator 3 | . . . . . 1 1 . . . . 1 . . . . . Drone 2 | . . . . . . . . . . . . . . . 2 . Watcher 3 | . 1 . 1 . . . . . . . 1 . . . . . Swarmer 31 | . 1 . 3 . 2 . 7 3 . . 3 5 2 . . 5 Grunt 51 | . 1 . 5 4 19 4 3 6 . . 2 . 2 . 3 2 Brawler 5 | . . . . 1 2 . 1 . . . 1 . . . . . Duelist 5 | . . . . 2 2 . . . . . . . 1 . . . Sentry 14 | . . . 2 2 5 . . . . 1 2 . 1 . . 1 Demolisher 1 | . . 1 . . . . . . . . . . . . . . Specialist 2 | . . . . . . . . . . . 2 . . . . . Hunter 11 | . . . . 1 1 . . . . . 1 2 2 . 4 . Programmer 6 | . . . . . 2 . . . . . 1 . . . 1 2 Behemoth 1 | . . . . . . . . 1 . . . . . . . . Decomposer 4 | . . . . . . . 1 . . . . . 3 . . . Samaritan 5 | . . . . . . . . 3 . . . 2 . . . . Assembled 13 | . . 5 . . . . . . . . . . 8 . . . Mutant 1 | . . . . . . . 1 . . . . . . . . . Best Kill Streak 9 | 1 3 7 3 3 9 3 5 5 . 1 4 5 8 . 3 7 Combat Bots Only 8 | . 2 2 3 3 4 3 5 5 . 1 4 5 8 . 3 6 Max Kills in Single Turn 3 | 1 1 1 1 1 3 1 1 2 . 1 1 3 3 . 1 3 Gunslinging . | . . . . . . . . . . . . . . . . . Exploded 3 | . . . . . 3 . 1 2 . . . 3 3 . . 3 Melee 1 | . . . . . 1 1 1 . . 1 1 1 1 . 1 1 Uniques/NPCs Destroyed . | . . . . . . . . . . . . . . . . . Combat | -11 -10 -10 -9 -8 -7 -6 -6 -6 -6 -5 -5 -5 -5 -5 -4 -4 -------- Run | Yrd Mat Min Mat Mat Fac Fac Low Low Dat Pro Fac Upp Upp Zhi Pro Fac Hostile Shots Fired 1451 | . 18 44 78 51 289 16 110 58 . 62 117 39 65 . 164 340 Missed 502 | . 6 8 23 15 96 2 20 20 . 19 36 9 24 . 74 150 Damage Taken 16713 | . 104 1017 602 574 2782 276 1428 728 . 813 1692 443 873 . 1495 3886 Core 2947 | . 29 163 133 73 269 20 196 123 . 277 383 22 46 . 75 1138 Absorbed by Shields 74 | . . . . . . . 36 . . . . . . . . 38 Redirected to Shielding 294 | . . . . . . . 105 . . . 6 8 18 . 157 . Ignored by Resistances 153 | . . . . . . . . . . 153 . . . . . . Regen/Repaired (Parts) 187 | . . . . . 187 . . . . . . . . . . . Core Remaining (%) 58 | 100 . 23 66 86 61 . . . . 27 . . . . 47 . Volleys Fired 300 | 1 8 75 37 39 74 . 10 27 . . . 2 10 . . 17 Largest 3 | 2 2 2 2 2 2 . 2 2 . . . 1 1 . . 3 Hottest 264 | 40 40 60 126 126 149 . 138 138 . . . 39 39 . . 264 Shots Fired 530 | 2 16 102 74 78 147 . 20 43 . . . 2 10 . . 36 Gun 483 | 2 16 102 74 78 139 . 20 24 . . . . . . . 28 Cannon . | . . . . . . . . . . . . . . . . . Launcher 47 | . . . . . 8 . . 19 . . . 2 10 . . 8 Special . | . . . . . . . . . . . . . . . . . Kinetic 68 | 2 16 50 . . . . . . . . . . . . . . Thermal 415 | . . 52 74 78 139 . 20 24 . . . . . . . 28 Explosive 47 | . . . . . 8 . . 19 . . . 2 10 . . 8 Electromagnetic . | . . . . . . . . . . . . . . . . . Robot Hit Streak 15 | 1 6 14 8 9 15 . 5 10 . . . 5 2 . . 9 Robot Miss Streak 9 | 1 2 4 9 3 9 . 2 2 . . . . 2 . . 2 Penetration Max . | . . . . . . . . . . . . . . . . . Secondary Targets 4 | . . . 2 . 2 . . . . . . . . . . . Max Gunslinging Chain 1 | . . . 1 . 1 . . . . . . . . . . . Shots Hit Robots 550 | 1 10 58 41 52 121 18 39 39 . 4 47 10 28 9 34 39 Core Hits 337 | 1 6 28 14 23 89 9 20 33 . 3 29 9 23 1 16 33 Critical Kills 2 | . . 2 . . . . . . . . . . . . . . Critical Parts Destroyed 4 | . . 1 . . . . . . . . . . . . . 3 Critical Strikes 42 | . . 3 1 4 8 3 6 1 . . 4 1 2 1 4 4 Burn 10 | . . . 1 4 3 . 1 1 . . . . . . . . Destroy 6 | . . 3 . . . . . . . . . . . . . 3 Sever 16 | . . . . . 5 3 4 . . . . 1 1 . 2 . Impale 10 | . . . . . . . 1 . . . 4 . 1 1 2 1 Melee Attacks 400 | . . . . . 63 22 34 5 . 9 89 16 29 11 77 45 Impact . | . . . . . . . . . . . . . . . . . Slashing 197 | . . . . . 63 22 25 . . . 22 13 19 5 28 . Piercing 203 | . . . . . . . 9 5 . 9 67 3 10 6 49 45 Sneak Attacks 31 | . . . . . 3 3 1 . . . 14 2 4 . 1 3 Combat Hostiles 1 | . . . . . . . . . . . . . . . 1 . Follow-up Attacks 55 | . . . . . 5 4 . . . . 12 2 7 4 19 2 Damage Inflicted 21200 | 12 131 752 749 874 3873 931 1369 2061 . 112 2354 925 2362 819 1397 2479 Guns 5319 | 10 131 741 749 874 1695 . 249 321 . . . . . . . 549 Cannons . | . . . . . . . . . . . . . . . . . Explosions 5132 | . . . . . 903 . . 1485 . . . 455 1144 . . 1145 Melee 10710 | . . . . . 1254 931 1120 255 . 112 2354 470 1218 819 1397 780 Ramming 39 | 2 . 11 . . 21 . . . . . . . . . . 5 Kinetic 515 | 10 131 374 . . . . . . . . . . . . . . Thermal 4804 | . . 367 749 874 1695 . 249 321 . . . . . . . 549 Explosive 4993 | . . . . . 764 . . 1485 . . . 455 1144 . . 1145 Electromagnetic 139 | . . . . . 139 . . . . . . . . . . . Impact . | . . . . . . . . . . . . . . . . . Slashing 5890 | . . . . . 1254 931 904 . . . 450 387 959 484 521 . Piercing 4820 | . . . . . . . 216 255 . 112 1904 83 259 335 876 780 Highest Corruption 18 | . . 18 1 . 6 . 11 11 11 13 8 8 8 8 8 9 Average Corruption 8 | . . 17 1 . 5 . 3 11 11 12 7 8 8 8 8 5 Corruption Purged . | . . . . . . . . . . . . . . . . . Corruption Blocked . | . . . . . . . . . . . . . . . . . Effects 187 | . . 13 . . 15 . 8 38 5 12 10 22 17 9 27 11 Message Errors 38 | . . 5 . . 4 . 1 6 2 2 . 5 5 . 6 2 Matter Fused 54 | . . 1 . . 6 . 1 14 2 5 3 6 5 1 7 3 Heat Flow Errors 25 | . . 1 . . . . 2 5 . 1 4 3 . 2 6 1 Energy Discharges 33 | . . 2 . . 4 . 1 2 1 2 2 3 4 5 4 3 Parts Rejected 1 | . . . . . . . 1 . . . . . . . . . Data Loss (minor) 18 | . . 2 . . . . . 5 . 1 . 3 3 1 2 1 Data Loss (major) 8 | . . . . . 1 . 1 2 . . 1 1 . . 2 . Misfires 3 | . . 1 . . . . . 1 . . . . . . . 1 Alerts 2 | . . . . . . . 1 . . . . 1 . . . . Misdirections 1 | . . . . . . . . . . 1 . . . . . . Weapon Failures 4 | . . 1 . . . . . 3 . . . . . . . . Overload Shots . | . . . . . . . . . . . . . . . . . Overflow Damage 1232 | . . . . . 7 158 135 72 . . 259 23 122 359 63 34 Projectiles . | . . . . . . . . . . . . . . . . . Explosions 188 | . . . . . 4 . . 71 . . . 5 93 . . 15 Melee 1044 | . . . . . 3 158 135 1 . . 259 18 29 359 63 19 Knockbacks . | . . . . . . . . . . . . . . . . . Impact . | . . . . . . . . . . . . . . . . . Kinetic . | . . . . . . . . . . . . . . . . . Secondary . | . . . . . . . . . . . . . . . . . Self-Inflicted Damage 347 | . . . . . 108 . . 45 . . . . 161 . . 33 Shots 10 | . . . . . 4 . . 1 . . . . 4 . . 1 Rammed 5 | 1 . 3 . . . . . . . . . . . . . 1 Targets Rammed 9 | 1 . 4 . . 3 . . . . . . . . . . 1 Kicked 3 | . . . . . 3 . . . . . . . . . . . Crushed 1 | . . 1 . . . . . . . . . . . . . . Highest Temperature 542 | . 6 383 460 492 351 . 423 240 . 542 223 125 . 234 218 189 Average Temperature 138 | . 6 145 193 150 92 . 196 57 . 280 111 63 . 107 83 79 Received Heat Transfer 2666 | . 6 9 153 171 732 105 207 90 . 415 189 . 92 . 60 437 Effects 17 | . . 3 8 3 . . 1 . . 2 . . . . . . Shutdowns 6 | . . 1 3 1 . . 1 . . . . . . . . . Energy Bleed 3 | . . 1 . 2 . . . . . . . . . . . . Interference 4 | . . . 3 . . . . . . 1 . . . . . . Matter Decay 1 | . . . 1 . . . . . . . . . . . . . Damage (minor) 2 | . . 1 1 . . . . . . . . . . . . . Damage (core) 1 | . . . . . . . . . . 1 . . . . . . Siege Activations . | . . . . . . . . . . . . . . . . . Robots Corrupted . | . . . . . . . . . . . . . . . . . Combat Hostiles . | . . . . . . . . . . . . . . . . . Parts Fried . | . . . . . . . . . . . . . . . . . Impact Corruptions . | . . . . . . . . . . . . . . . . . Robots Melted 2 | . . . . 1 . . . 1 . . . . . . . . Combat Hostiles . | . . . . . . . . . . . . . . . . . Parts Melted 24 | . . . 3 5 8 . 2 3 . . . . . . . 3 Heat Transferred 10610 | . . 938 1702 2220 3789 . 555 703 . . . . . . . 703 Parts Sabotaged . | . . . . . . . . . . . . . . . . . Parts Stolen . | . . . . . . . . . . . . . . . . . Parts Stripped . | . . . . . . . . . . . . . . . . . Power Chain Reactions 2 | . . . . . 2 . . . . . . . . . . . Alert | -11 -10 -10 -9 -8 -7 -6 -6 -6 -6 -5 -5 -5 -5 -5 -4 -4 ------- Run | Yrd Mat Min Mat Mat Fac Fac Low Low Dat Pro Fac Upp Upp Zhi Pro Fac Peak Influence 960 | 5 155 105 412 330 960 561 . . . . 256 . . . . 374 Initial 470 | . 3 60 9 89 116 470 . . . . 9 . . . . 150 Average 316 | 1 88 52 165 215 641 478 . . . . 109 . . . . 225 Maximum Alert Level 3 | . . . 2 1 3 2 . . . . 1 . . . . 1 Low Security (%) 46 | 100 100 100 58 38 6 . . . . . 79 . . . . 53 Level 1 22 | . . . 37 61 11 13 . . . . 20 . . . . 46 Level 2 15 | . . . 4 . 29 86 . . . . . . . . . . Level 3 15 | . . . . . 52 . . . . . . . . . . . Level 4 . | . . . . . . . . . . . . . . . . . Level 5 . | . . . . . . . . . . . . . . . . . High Security . | . . . . . . . . . . . . . . . . . Max Security . | . . . . . . . . . . . . . . . . . Squads Dispatched 31 | . 2 . 1 3 12 2 . . . . 6 . . . . 5 Investigation 13 | . 2 . 1 1 6 . . . . . 3 . . . . . Extermination 6 | . . . . . 2 . . . . . 2 . . . . 2 Reinforcement 7 | . . . . . 2 1 . . . . 1 . . . . 3 Assault 3 | . . . . . 2 1 . . . . . . . . . . Garrison 2 | . . . . 2 . . . . . . . . . . . . Intercept . | . . . . . . . . . . . . . . . . . Searches Triggered . | . . . . . . . . . . . . . . . . . Data Miner Redirects 3 | . . . . . . . . . . . 3 . . . . . Construction Impeded 2 | . . . . . 1 . . . . . . . . . . 1 Haulers Reinforced 1 | . . . . . . . . . . . . . . . . 1 Active Scanning Responses . | . . . . . . . . . . . . . . . . . Cargo Convoy Interrupts . | . . . . . . . . . . . . . . . . . Stealth | -11 -10 -10 -9 -8 -7 -6 -6 -6 -6 -5 -5 -5 -5 -5 -4 -4 --------- Run | Yrd Mat Min Mat Mat Fac Fac Low Low Dat Pro Fac Upp Upp Zhi Pro Fac Distress Signals 7 | . . 1 3 3 . . . . . . . . . . . . Communications Jammed . | . . . . . . . . . . . . . . . . . Distress Signals . | . . . . . . . . . . . . . . . . . Times Spotted 233 | . 6 15 16 17 49 5 15 9 . 2 24 7 17 . 13 38 Peak Tracking Total 12 | . 6 4 5 5 7 4 4 4 . 2 5 5 8 . 4 12 Tactical Retreats 28 | . 1 2 5 1 4 . 4 . . 1 1 . . . 2 7 Traps | -11 -10 -10 -9 -8 -7 -6 -6 -6 -6 -5 -5 -5 -5 -5 -4 -4 ------- Run | Yrd Mat Min Mat Mat Fac Fac Low Low Dat Pro Fac Upp Upp Zhi Pro Fac Traps Triggered 4 | . . . 1 . 2 . . . . . . . . . . 1 Indirectly 2 | . . . . . 2 . . . . . . . . . . . Trap Hack Attempts . | . . . . . . . . . . . . . . . . . Triggered . | . . . . . . . . . . . . . . . . . Disarmed . | . . . . . . . . . . . . . . . . . Reprogrammed . | . . . . . . . . . . . . . . . . . Reused . | . . . . . . . . . . . . . . . . . Traps Extracted . | . . . . . . . . . . . . . . . . . Installed . | . . . . . . . . . . . . . . . . . Triggered 6 | . . . . . . . 1 3 . . . . 2 . . . Machines | -11 -10 -10 -9 -8 -7 -6 -6 -6 -6 -5 -5 -5 -5 -5 -4 -4 ---------- Run | Yrd Mat Min Mat Mat Fac Fac Low Low Dat Pro Fac Upp Upp Zhi Pro Fac Machines Disabled 18 | . . . . . 16 . 1 . . . . . . . . 1 Max in Single Turn 5 | . . . . . 5 . 1 . . . . . . . . 1 Garrison Access 1 | . . . . 1 . . . . . . . . . . . . Machines Repaired . | . . . . . . . . . . . . . . . . . Machines Dismantled . | . . . . . . . . . . . . . . . . . Machines Sabotaged . | . . . . . . . . . . . . . . . . . Overloaded Fab Kills . | . . . . . . . . . . . . . . . . . Hacking | -11 -10 -10 -9 -8 -7 -6 -6 -6 -6 -5 -5 -5 -5 -5 -4 -4 --------- Run | Yrd Mat Min Mat Mat Fac Fac Low Low Dat Pro Fac Upp Upp Zhi Pro Fac Machines Accessed 38 | . 2 . 1 3 9 2 1 2 4 . 6 1 1 5 . 1 Terminals 13 | . . . . 1 4 1 . 1 . . 5 . 1 . . . Fabricators 1 | . . . . . 1 . . . . . . . . . . . Repair Stations 3 | . . . . . 1 1 . . . . 1 . . . . . Recycling Units 6 | . 2 . . 1 2 . . . . . . . . . . 1 Scanalyzers 2 | . . . 1 . 1 . . . . . . . . . . . Garrison Access 1 | . . . . 1 . . . . . . . . . . . . Total Hacks 109 | . 4 . 1 7 24 7 1 2 25 . 16 1 2 18 . 1 Successful 80 | . 3 . 1 3 13 3 1 2 25 . 7 1 2 18 . 1 Failed 29 | . 1 . . 4 11 4 . . . . 9 . . . . . Catastrophic 5 | . . . . . 3 . . . . . 2 . . . . . Database Lockouts . | . . . . . . . . . . . . . . . . . Manual 21 | . 2 . 1 1 8 3 . . . . 6 . . . . . Terminals 33 | . . . . 3 10 4 . 1 . . 13 . 2 . . . Fabricators 2 | . . . . . 2 . . . . . . . . . . . Repair Stations 8 | . . . . . 2 3 . . . . 3 . . . . . Recycling Units 10 | . 4 . . 1 4 . . . . . . . . . . 1 Scanalyzers 7 | . . . 1 . 6 . . . . . . . . . . . Garrison Access 3 | . . . . 3 . . . . . . . . . . . . Terminal Hacks 56 | . . . . 1 2 1 1 2 25 . 3 1 2 18 . . Record 20 | . . . . . . . . 1 11 . . . 2 6 . . Part Schematic 12 | . . . . . . . . . 8 . . . . 4 . . Robot Schematic 3 | . . . . . . . . . 3 . . . . . . . Robot Analysis 4 | . . . . . . . . . . . . . . 4 . . Prototype ID Bank 7 | . . . . . . . . . 3 . . . . 4 . . Open Door 3 | . . . . . . . 1 1 . . . 1 . . . . Level Access Points 3 | . . . . 1 1 . . . . . 1 . . . . . Branch Access Points 2 | . . . . . . 1 . . . . 1 . . . . . Terminal Index 1 | . . . . . 1 . . . . . . . . . . . Alert Level 1 | . . . . . . . . . . . 1 . . . . . Fabricator Hacks 1 | . . . . . 1 . . . . . . . . . . . Network Status 1 | . . . . . 1 . . . . . . . . . . . Repair Station Hacks 4 | . . . . . 2 1 . . . . 1 . . . . . Scan Component 2 | . . . . . 1 1 . . . . . . . . . . Repair 1 | . . . . . 1 . . . . . . . . . . . Refit 1 | . . . . . . . . . . . 1 . . . . . Recycling Unit Hacks 3 | . 1 . . . 1 . . . . . . . . . . 1 Process 1 | . . . . . 1 . . . . . . . . . . . Report Inventory 1 | . 1 . . . . . . . . . . . . . . . Retrieve Components 1 | . . . . . . . . . . . . . . . . 1 Scanalyzer 4 | . . . . . 4 . . . . . . . . . . . Insert Component 2 | . . . . . 2 . . . . . . . . . . . Analyze 2 | . . . . . 2 . . . . . . . . . . . Garrison Access Hacks 1 | . . . . 1 . . . . . . . . . . . . Seal Access 1 | . . . . 1 . . . . . . . . . . . . Unauthorized Hacks 11 | . 2 . 1 1 3 1 . . . . 3 . . . . . Terminals 4 | . . . . . . 1 . . . . 3 . . . . . Botnet 4 | . . . . . . 1 . . . . 3 . . . . . Fabricators 1 | . . . . . 1 . . . . . . . . . . . Download 1 | . . . . . 1 . . . . . . . . . . . Repair Stations . | . . . . . . . . . . . . . . . . . Recycling Units 5 | . 2 . . 1 2 . . . . . . . . . . . Tunnel 5 | . 2 . . 1 2 . . . . . . . . . . . Scanalyzers 1 | . . . 1 . . . . . . . . . . . . . Extract 1 | . . . 1 . . . . . . . . . . . . . Garrison Access . | . . . . . . . . . . . . . . . . . Data Cores Recovered . | . . . . . . . . . . . . . . . . . Used . | . . . . . . . . . . . . . . . . . Hacking Detections 16 | . 1 . . 1 6 2 . . . . 5 . 1 . . . Full Trace Events 6 | . . . . . 3 . . . . . 3 . . . . . Feedback Events . | . . . . . . . . . . . . . . . . . Feedback Blocked . | . . . . . . . . . . . . . . . . . Robot Schematics Acquired 3 | . . . . . . . . . 3 . . . . . . . Robots Built . | . . . . . . . . . . . . . . . . . Authchips . | . . . . . . . . . . . . . . . . . Time . | . . . . . . . . . . . . . . . . . Total Robot Build Rating . | . . . . . . . . . . . . . . . . . Part Schematics Acquired 15 | . . . 1 . 2 . . . 8 . . . . 4 . . Parts Built . | . . . . . . . . . . . . . . . . . Authchips . | . . . . . . . . . . . . . . . . . Time . | . . . . . . . . . . . . . . . . . Total Part Build Rating . | . . . . . . . . . . . . . . . . . Parts Repaired 1 | . . . . . 1 . . . . . . . . . . . Time 44 | . . . . . 44 . . . . . . . . . . . Parts Recycled . | . . . . . . . . . . . . . . . . . Recycled Matter 257 | . . . . . 257 . . . . . . . . . . . Retrieved Matter . | . . . . . . . . . . . . . . . . . Retrieved Components 10 | . . . . . . . . . . . . . . . . 10 Parts Scanalyzed 2 | . . . . . 2 . . . . . . . . . . . Part Schematics Acquired 2 | . . . . . 2 . . . . . . . . . . . Parts Damaged . | . . . . . . . . . . . . . . . . . Bothacking | -11 -10 -10 -9 -8 -7 -6 -6 -6 -6 -5 -5 -5 -5 -5 -4 -4 ------------ Run | Yrd Mat Min Mat Mat Fac Fac Low Low Dat Pro Fac Upp Upp Zhi Pro Fac Used RIF Installer . | . . . . . . . . . . . . . . . . . Robots Hacked . | . . . . . . . . . . . . . . . . . Non-combat . | . . . . . . . . . . . . . . . . . Combat . | . . . . . . . . . . . . . . . . . Robot Hacks Applied . | . . . . . . . . . . . . . . . . . Relay Couplers Released . | . . . . . . . . . . . . . . . . . Fabnet Peak Effective % . | . . . . . . . . . . . . . . . . . Robots Rewired . | . . . . . . . . . . . . . . . . . Allies Hacked . | . . . . . . . . . . . . . . . . . Hacks Repelled . | . . . . . . . . . . . . . . . . . Allies | -11 -10 -10 -9 -8 -7 -6 -6 -6 -6 -5 -5 -5 -5 -5 -4 -4 -------- Run | Yrd Mat Min Mat Mat Fac Fac Low Low Dat Pro Fac Upp Upp Zhi Pro Fac Total Allies 1 | . . . . . . . . . . 1 . . . . . . Largest Group 1 | . . . . . . . . . . 1 . . . . . . Highest-Rated Group 96 | . . . . . . . . . . 96 . . . . . . Highest-Rated Ally 96 | . . . . . . . . . . 96 . . . . . . Total Orders . | . . . . . . . . . . . . . . . . . Ally Attacks 7 | . . . . . . . . . . 7 . . . . . . Total Damage 328 | . . . . . . . . . . 328 . . . . . . Kills . | . . . . . . . . . . . . . . . . . Allies Corrupted . | . . . . . . . . . . . . . . . . . Allies Melted . | . . . . . . . . . . . . . . . . . Intel | -11 -10 -10 -9 -8 -7 -6 -6 -6 -6 -5 -5 -5 -5 -5 -4 -4 ------- Run | Yrd Mat Min Mat Mat Fac Fac Low Low Dat Pro Fac Upp Upp Zhi Pro Fac Robot Analysis Total 4 | . . . . . . . . . . . . . . 4 . . Derelict Logs Recovered 5 | . . . . . . . 1 1 . . . 1 . . 2 . Drone Launches . | . . . . . . . . . . . . . . . . . Drone Recoveries . | . . . . . . . . . . . . . . . . . Decoded 0b10 Intel 23 | . . . . . . . . . . . . . . . . 23 Emergency Access 2 | . . . . . . . . . . . . . . . . 2 Items 14 | . . . . . . . . . . . . . . . . 14 Machines 3 | . . . . . . . . . . . . . . . . 3 Patrols 3 | . . . . . . . . . . . . . . . . 3 Guards 1 | . . . . . . . . . . . . . . . . 1 Exploration | -11 -10 -10 -9 -8 -7 -6 -6 -6 -6 -5 -5 -5 -5 -5 -4 -4 ------------- Run | Yrd Mat Min Mat Mat Fac Fac Low Low Dat Pro Fac Upp Upp Zhi Pro Fac Turns Passed 11024 | 107 160 668 412 520 1933 463 980 872 143 332 1305 725 555 255 813 781 Spaces Moved 6742 | 57 81 288 159 235 1070 322 663 515 76 181 897 577 359 187 482 593 Core 125 | 4 . . . . . . . . . 1 . . . . . 120 Treads 819 | 53 81 288 159 235 . . . 1 . 2 . . . . . . Legs 4734 | . . . . . 1070 322 663 514 76 178 268 286 359 187 482 329 Wheels 920 | . . . . . . . . . . . 629 291 . . . . Hover 66 | . . . . . . . . . . . . . . . . 66 Flight 78 | . . . . . . . . . . . . . . . . 78 Fastest Speed 40 | 50 160 160 160 160 120 120 120 120 190 120 90 105 120 120 120 40 Average Speed 125 | 152 160 160 160 160 128 120 120 146 190 156 112 112 120 120 121 90 Slowest Speed 400 | 160 160 160 160 160 195 120 190 240 190 400 190 260 190 120 190 120 Overloaded Moves . | . . . . . . . . . . . . . . . . . Propulsion Burnouts . | . . . . . . . . . . . . . . . . . Robots Hopped 4 | . . . . . . . . . . . . . . . . 4 Cave-ins Triggered . | . . . . . . . . . . . . . . . . . Teleports 1 | . . . . . . . . . . . . . . . . 1 Exploration Rate (%) 36 | 4 24 39 16 23 24 9 58 66 68 38 22 66 43 60 57 10 Regions Visited 16 Branch Regions 9 Pre-discovered Areas 10 | . 2 . . 1 2 . . . 1 . . . . 3 1 . Known Exits Taken 8 | . . . . 1 1 1 . . . . 1 1 1 1 1 . Unknown Exits Taken 8 | 1 1 1 1 . . . 1 1 1 1 . . . . . . Scrap Searched 8 | . . . . . . . 1 1 . 1 . 2 1 . 2 . Spaces Dug 72 | . . . . . 19 . 2 . . 1 14 2 . . 16 18 Terrain Destroyed 321 | . . . . . 63 . 2 80 . 1 14 15 78 . 16 52 Melee 72 | . . . . . 19 . 2 . . 1 14 2 . . 16 18 Projectile . | . . . . . . . . . . . . . . . . . AOE 249 | . . . . . 44 . . 80 . . . 13 78 . . 34 Terrain Rammed . | . . . . . . . . . . . . . . . . . Walls Destroyed . | . . . . . . . . . . . . . . . . . Machines Disabled . | . . . . . . . . . . . . . . . . . Actions | -11 -10 -10 -9 -8 -7 -6 -6 -6 -6 -5 -5 -5 -5 -5 -4 -4 --------- Run | Yrd Mat Min Mat Mat Fac Fac Low Low Dat Pro Fac Upp Upp Zhi Pro Fac Total 8303 | 71 99 394 245 302 1413 382 774 578 75 220 1104 627 440 208 631 740 Wait 314 | . . 1 29 1 82 18 23 5 . 9 26 15 28 1 57 19 Move 6722 | 57 80 288 158 234 1069 321 662 514 75 180 896 576 358 186 481 587 Hop 2 | . . . . . . . . . . . . . . . . 2 Pick Up 155 | 6 5 6 7 6 30 5 9 11 . 2 31 4 9 4 10 10 Fast Attach 95 | 7 . 7 4 2 13 1 5 2 . 3 23 . . 4 6 18 Attach 105 | . . 3 . 4 16 3 14 8 . 8 11 8 6 2 4 18 Detach 54 | . . 2 1 1 11 2 4 2 . 3 14 3 1 3 1 6 Swap 100 | . 1 4 2 7 31 7 8 3 . . 6 4 4 . 15 8 Drop 142 | . 5 5 7 8 31 9 5 1 . 6 34 3 5 3 13 7 Fire 300 | 1 8 75 37 39 74 . 10 27 . . . 2 10 . . 17 Melee 295 | . . . . . 53 16 34 5 . 9 63 12 19 5 44 35 Ram 1 | . . . . . . . . . . . . . . . . 1 Kick 3 | . . . . . 3 . . . . . . . . . . . Crush 3 | . . 3 . . . . . . . . . . . . . . Escape Stasis 12 | . . . . . . . . . . . . . . . . 12 Rewire . | . . . . . . . . . . . . . . . . . Trap . | . . . . . . . . . . . . . . . . . Miscellaneous . | . . . . . . . . . . . . . . . . . Route ------- -11/Scrapyard -10/Materials (discovered 2 exits: *Mat / [*Min]) -10/Mines (discovered 2 exits: *Mat x2) -9/Materials -8/Materials (discovered 3 exits: *Fac x3) -7/Factory (discovered 4 exits: *Fac x4) -6/Factory (discovered 3 exits: *Fac / *Low x2) -6/Lower Caves -6/Lower Caves -6/Data Miner -5/Proximity Caves -5/Factory (discovered 6 exits: Fac x4 / *Upp x2) -5/Upper Caves -5/Upper Caves -5/Zhirov -4/Proximity Caves -4/Factory History --------- Turn | Location | Event 66 | -11/Scrapyard | Discovered new exit (range 13) 108 | -11/Scrapyard | Entered Materials 182 | -10/Materials | Discovered new exit (range 15) 248 | -10/Materials | Discovered new exit (range 5) 268 | -10/Materials | Entered Mines 276 | -10/Mines | Discovered new exit (range 5) 282 | -10/Mines | Received a Rocket Launcher from a helpful Derelict 309 | -10/Mines | Build established: Mutant 320 | -10/Mines | Met a Derelict bent on vengeance 381 | -10/Mines | Assembled infested the area 640 | -10/Mines | System corruption reached 10% 654 | -10/Mines | Joined a pair of Derelicts in attacking an 0b10 outpost 671 | -10/Mines | Core integrity fell below 50% 702 | -10/Mines | Lost 7 parts (1p1n3u2w) 735 | -10/Mines | Discovered new exit (range 7) 936 | -10/Mines | Entered Materials 936 | -9/Materials | Evolved 2 slots: Utility x2 1234 | -9/Materials | Build established: Hacker-Mutant 1319 | -9/Materials | Discovered new exit (range 16) 1348 | -9/Materials | Entered another Materials area 1348 | -8/Materials | Evolved 2 slots: Utility x2 1366 | -8/Materials | Identified exit to Factory 1460 | -8/Materials | Garrison activated, responded to threat 1804 | -8/Materials | Build established: Scavenger-Mutant 1868 | -8/Materials | Entered Factory 1868 | -7/Factory | Evolved 2 slots: Propulsion x1, Utility x1 2069 | -7/Factory | Identified exit to Factory 2373 | -7/Factory | Repaired Imp. Medium Armor Plating 3068 | -7/Factory | First assault squad dispatched 3334 | -7/Factory | Lost 6 parts (1p3n2u) 3645 | -7/Factory | Build established: Scavenger-Gladiator 3801 | -7/Factory | Entered another Factory area 3801 | -6/Factory | Evolved 2 slots: Propulsion x1, Utility x1 3829 | -6/Factory | Identified exit to Lower Caves 4151 | -6/Factory | First assault squad dispatched 4172 | -6/Factory | Discovered new exit (range 11) 4264 | -6/Factory | Entered Lower Caves 4350 | -6/Lower Caves | Lost 3 parts (1u2w) 4401 | -6/Lower Caves | Attacked by a delusional Derelict stockpiling parts 4615 | -6/Lower Caves | Build established: Scavenger-Mutant 4675 | -6/Lower Caves | Learned Factory trap positions 4798 | -6/Lower Caves | Lost 4 parts (1n2u1w) 5107 | -6/Lower Caves | System corruption reached 10% 5143 | -6/Lower Caves | Lost 6 parts (2p4u) 5207 | -6/Lower Caves | Discovered new exit (range 9) 5244 | -6/Lower Caves | Entered another Lower Caves area 5527 | -6/Lower Caves | Spotted B-75 Beast 5540 | -6/Lower Caves | Destroyed B-75 Beast 5564 | -6/Lower Caves | Lost 4 parts (3n1w) 5666 | -6/Lower Caves | Learned Factory terminal intel 5820 | -6/Lower Caves | Build established: Hacker-Mutant 6089 | -6/Lower Caves | Discovered new exit (range 4) 6116 | -6/Lower Caves | Entered Data Miner 6116 | -6/Data Miner | Discovered new exit (range 6) 6153 | -6/Data Miner | Met Data Miner 6200 | -6/Data Miner | Learned location of Section 7 (-2) 6200 | -6/Data Miner | Acquired the access code to Warlord's prototype stash 6217 | -6/Data Miner | Received God Mode back door access code from Data Miner 6259 | -6/Data Miner | Entered Proximity Caves 6373 | -5/Proximity Caves | Spotted B-75 Beast 6426 | -5/Proximity Caves | Core integrity fell below 50% 6467 | -5/Proximity Caves | Attracted the attention of an 0b10 checkpoint 6492 | -5/Proximity Caves | Escorted by Enhanced Grunt 6544 | -5/Proximity Caves | Lost 6 parts (1p2n3u) 6554 | -5/Proximity Caves | Discovered new exit (range 13) 6591 | -5/Proximity Caves | Entered Factory 6591 | -5/Factory | Evolved 2 slots: Utility x1, Weapon x1 6592 | -5/Factory | Loaded intel: 87 trap records 6593 | -5/Factory | Loaded intel: 26 terminal locations 6779 | -5/Factory | Incoming investigation squad redirected 6886 | -5/Factory | Build established: Scavenger-Mutant 7266 | -5/Factory | Discovered new exit (range 18) 7328 | -5/Factory | Lost 3 parts (2n1u) 7386 | -5/Factory | Incoming investigation squad redirected 7462 | -5/Factory | Identified exit to Factory 7487 | -5/Factory | Incoming investigation squad redirected 7576 | -5/Factory | Lost 4 parts (1p1n2u) 7684 | -5/Factory | Identified exit to Upper Caves 7896 | -5/Factory | Entered Upper Caves 8067 | -5/Upper Caves | Learned Factory trap positions 8274 | -5/Upper Caves | Lost 3 parts (1n1u1w) 8312 | -5/Upper Caves | Discovered new exit (range 13) 8560 | -5/Upper Caves | Identified exit to Upper Caves 8621 | -5/Upper Caves | Entered another Upper Caves area 8859 | -5/Upper Caves | Encountered an infested base 8894 | -5/Upper Caves | Destroyed 8 combat bots 8954 | -5/Upper Caves | Build established: Scavenger-Gladiator 9013 | -5/Upper Caves | Attracted the attention of an 0b10 checkpoint 9081 | -5/Upper Caves | Lost 3 parts (2n1u) 9084 | -5/Upper Caves | Discovered new exit (range 9) 9128 | -5/Upper Caves | Identified exit to Zhirov 9176 | -5/Upper Caves | Entered Zhirov 9176 | -5/Zhirov | Discovered new exit (range 3) 9199 | -5/Zhirov | Met Zhirov 9221 | -5/Zhirov | Learned location of Quarantine (-2) 9221 | -5/Zhirov | Learned location of Testing (-3) 9221 | -5/Zhirov | Learned location of Command (-1) 9233 | -5/Zhirov | Zhirov requested help retrieving the SGEMP Prototype 9256 | -5/Zhirov | Found Alien Artifact 9272 | -5/Zhirov | Found Alien Artifact 9272 | -5/Zhirov | Identified Integrated Dissipator 9272 | -5/Zhirov | Installed Integrated Dissipator, increased core heat dissipation (+20) 9428 | -5/Zhirov | Identified exit to Proximity Caves 9431 | -5/Zhirov | Entered Proximity Caves 9439 | -4/Proximity Caves | Spotter reported a threat 10021 | -4/Proximity Caves | Ambushed by research squad 10040 | -4/Proximity Caves | Core integrity fell below 50% 10082 | -4/Proximity Caves | Lost 5 parts (2n3u) 10160 | -4/Proximity Caves | Discovered exit to Factory (range 8) 10173 | -4/Proximity Caves | Learned 4 Research zone layouts 10244 | -4/Proximity Caves | Entered Factory 10244 | -4/Factory | Evolved 2 slots: Power x1, Utility x1 10245 | -4/Factory | Loaded intel: 102 trap records 10340 | -4/Factory | Spotted B-86 Titan 10455 | -4/Factory | Lost 11 parts (2p3n5u1w) 10781 | -4/Factory | Build established: Scavenger-Mutant 10875 | -4/Factory | Core integrity fell below 50% 10928 | -4/Factory | Core integrity fell below 20% 10938 | -4/Factory | Identified Transdimensional Reconstructor 10938 | -4/Factory | Warped through subspace 10960 | -4/Factory | Lost 18 parts (3p6n6u3w) 11025 | -4/Factory | Destroyed by G-67 Veteran with Field Laser Last Messages --------------- 10997_ >> DECODED: Patrol location. 11004_ U-05 Engineer works on Assembly Bed. 11010_ System corrupted: Component data lost. 11011_ Slug penetrates Wall. 11011_ Penetrated by Slug. 11011_ Slug penetrates Wall. 11012_ Slug penetrates Assembly Bed. 11012_ Assembly Bed disabled. 11014_ Slug penetrates Assembly Bed. 11014_ Penetrated by Slug. 11014_ Slug penetrates Wall. 11014_ U-05 Engineer works on Assembly Bed. 11016_ Penetrated by Slug. 11017_ U-05 Engineer works on Assembly Bed. 11017_ Slug penetrates DSF Access. 11020_ Adv. Drone Bay destroyed. 11020_ Penetrated by Slug. 11025_ >> DECODED: Disruptor Cannon location. 11025_ Critical hit (Burn: +50). 11025_ Adv. Drone Bay destroyed. Map ----- +----------------------------------------------------+ | ???????????????????????????????????????????# ???# | | ???????????????????????????????????# ?????# ???# | | ????????????????????????? ?????????# ?+ ??# | | ??????????????????????????????+??? # ?? ??# | | ????????????????????????? ?????? ?# #?? ??# | | ??????????????????????????????###+## ####+### | | ?????????????????????????#???+??# ^ | | ?????????????????????## ?? ? ?# = | | ??????????????????#?###? ? ?? ? + ^^ " [ | | ??????????????????#??#? ? ?????# ^"Y ! | | ????????????????#??####? ??? ? # ""=!] | | ??????????????#???###?#?#?#?##### !] # | | ??????????????#??################ !! # | | ?????????????#??##?# !=[ # ^ ^!! # | | ?????????????##?#### g [= # # | | ????????????#????### l # " # | | ?????????????####?## g " # " + | | ????????????#?##?#?# g""" # # | | ??????????????#?##?# """ # " ###+## | | ????????????????#### # " # | | ????????????###???## "" # # | | ?????????????##?#?## " "" # # "" | | ?????????????#####?# """" # """" # "" | | ???????????#?#?##### h # """" # "" | | ?????????????##????# % h # """" # | | ??????????? ?############@####### """" # ! | | ?????????? R """ ###### | | ?????????? """ | | ?????????? ####### | | ??????????? ####### | | ???????????################# T###############?#??# | | ?????????????#?#??###########################????# | | ??????????????##?######?#?####??##?###?###???#?#?? | | ???????????????#???######?####?#########???????#?? | | ??????????????????#?##?####?###??##???#?#####?#??# | | ????????????????##???######?##?##?#?##?###???##?#? | | ?]?????????????#???##?###???#???###?#######??????? | | ????!????????????#???#?###?##########?###?###????? | | ???????????????????#??#?###?##??##?######??#?#???? | | ??????=???????????????##?###?##?###?##?#?????????? | | ??????????????????????#????######??#???#?????????? | | ?????????????????????????###???#???????#?????????? | | ??????????????????????####?#?????#??????##???????? | | ??????[??????????????????????????????????????????? | | ?????????????????????????????????????????????????? | | ?????????????????????????????????????????????????? | | ?????????????????????????????????????????????????? | | ?????????????????????????????????????????????????? | | ?????????????????????????????????????????????????? | | ?????????????????????????????????????????????????? | +----------------------------------------------------+ Best States ------------- Heat Dissipation 82 Energy Generation 45 Energy Capacity 430 Matter Stores 331 Matter Capacity 500 Sight Range 22 Robot Scan Range 15 Terrain Scan Range 16 Terrain Scan Density 310 Jamming Range 14 Armor Coverage 600 Resistance: KI 30 Resistance: TH 25 Core Shielding 30 Propulsion Shielding 66 Utility Shielding 90 Melee Speed Boost 20 Phase Shifting 10 Evasion (%) 73 Targeting Accuracy 6 Melee Accuracy 12 Target Analysis 7 Core Analysis 6 Recoil Reduction 2 Offensive Hacking 28 Defensive Hacking 14 Item Schematics ----------------- Lgt. Assault Rifle | -9/Materials | Extracted Hacking Suite | -7/Factory | Scanalyzed Aluminum Leg | -7/Factory | Scanalyzed Combat Drone Bay | -6/Data Miner | Free Lgt. Regenerative Plating | -6/Data Miner | Free Cld. Gravmag System | -6/Data Miner | Free Imp. Matter Compressor | -6/Data Miner | Free Enh. Force Rifle | -6/Data Miner | Free Centrium Wheel | -6/Data Miner | Free Quantum Capacitor | -6/Data Miner | Free Railgun | -6/Data Miner | Free Assault Drone Bay | -5/Zhirov | Free Exp. Heat Sink | -5/Zhirov | Free Exp. Optical Array | -5/Zhirov | Free Imp. Arc Thrower | -5/Zhirov | Free Robot Schematics ------------------ B-60 Warrior | -6/Data Miner | Free A-15 Conveyor | -6/Data Miner | Free Y-54 Guardian | -6/Data Miner | Free Fabricated ------------ Nothing Alien Tech Used ----------------- Integrated Dissipator Transdimensional Reconstructor Achievements -------------- None Challenges ------------ None Game ------ Seed IntegratedBladeTerrabomb Manual? 0 Play Time 01:20:34 Cumulative 113.7 hours Start 2024.09.02 @ 23:50:43 End 2024.09.03 @ 01:11:48 Sessions 1 Manual Loads 0 Difficulty Rogue Special Mode None Game No. 131 Rogue 131 Adventurer 0 Explorer 0 Win Type - Total 2 Types 2/0/0/0/0/0/0/0/0 Lore% 50 Gallery% 62 Achievement% 46 Wizard Run 0 Options --------- Layout 0 ASCII 0 Keyboard 1 Movement Numpad Keybinds 0 Fullscreen 2 Font 18/SmallcapsGlow Map View 76x50 Zoom Use 0% Tactical HUD 1 Map Filters NONE Filters NONE Steam 1 RUN: 94985bce-c8ff-412c-998b-977f277869c9